bitfinex/quotes_SOLUSD_20250508
["timestamp","ask_amount","ask_price","bid_price","bid_amount"]
[1746715002759,39.05722481,156.95,156.84,26.0]
[1746715003184,0.14216157,156.94,156.84,26.0]
[1746715003356,23.1279,156.95,156.84,26.0]
[1746715004662,23.1279,156.95,156.81,65.08174886]
[1746715004663,23.1279,156.95,156.88,26.0]
[1746715005026,21.6,156.95,156.88,26.0]
[1746715005350,1.5323,156.99,156.88,26.0]
[1746715005786,29.6567,157.05,156.94,26.0]
[1746715006159,31.1349376,157.01,156.88,6.7810034]
[1746715006354,31.1349376,157.0,156.9,26.0]
[1746715006749,37.50274198,157.04,156.94,26.0]
[1746715006987,6.36780438,157.04,156.94,26.0]
[1746715007153,29.6567,157.05,156.94,26.0]
[1746715008275,67.15910027,157.05,156.98,26.0]
[1746715008576,36.02416267,157.05,156.98,26.0]
[1746715008779,67.15910027,157.05,156.98,26.0]
[1746715009299,67.15910027,157.05,156.98,32.37000638]
[1746715009759,36.02416267,157.05,156.98,32.37000638]
[1746715009962,67.15910027,157.05,156.98,6.37000638]
[1746715010185,36.02416267,157.05,156.98,6.37000638]
[1746715010387,36.02416267,157.05,156.98,32.37000638]
[1746715010768,6.36625039,157.08,156.98,32.37000638]
[1746715010966,6.36625039,157.08,157.01,26.0]
[1746715011368,12.37949656,157.09,157.02,6.36861546]
[1746715011781,12.37949656,157.09,157.01,26.0]
[1746715011782,43.51443416,157.09,157.01,32.36890506]
[1746715011966,31.27709917,157.08,156.96,6.3045]
[1746715012169,31.1349376,157.07,156.99,26.0]
[1746715012526,0.14216157,157.08,157.0,26.0]
[1746715012527,31.27709917,157.08,157.0,26.0]
[1746715012665,31.1349376,157.08,157.0,26.0]
[1746715012864,12.37949656,157.09,157.0,26.0]
[1746715013368,43.51443416,157.09,157.01,6.36902108]
[1746715014377,43.51443416,157.09,156.97,6.37064407]
[1746715014378,31.1349376,157.07,156.97,6.37064407]
[1746715014580,31.1349376,157.05,156.97,6.37064407]
[1746715014887,1.5345,157.01,156.94,6.37156192]
[1746715015073,31.1349376,156.99,156.92,26.0]
[1746715015269,37.50490034,156.99,156.93,32.37226789]
[1746715015589,31.1349376,156.98,156.91,6.3730801]
[1746715015778,31.1349376,156.98,156.91,32.3730801]
[1746715015993,31.1349376,156.98,156.91,6.3730801]
[1746715016165,31.1349376,156.97,156.91,6.3730801]
[1746715016878,6.36942675,157.0,156.91,6.3730801]
[1746715017095,31.1349376,156.98,156.91,6.3730801]
[1746715017592,0.14216157,156.95,156.86,6.37511156]
[1746715017777,0.14216157,156.99,156.86,6.37511156]
[1746715017973,31.1349376,156.96,156.86,6.37511156]
[1746715018169,31.1349376,156.96,156.89,26.0]
[1746715018897,37.50571886,156.97,156.9,6.37348629]
[1746715019074,0.14216157,156.99,156.9,6.37348629]
[1746715019275,31.1349376,156.98,156.9,6.37348629]
[1746715019677,31.1349376,156.96,156.87,6.37470516]
[1746715020378,31.1349376,156.96,156.87,32.37470516]
[1746715020884,31.1349376,156.94,156.87,32.37470516]
[1746715021085,0.14216157,156.95,156.87,6.37470516]
[1746715021391,27.17144699,156.96,156.87,6.37470516]
[1746715021795,27.17144699,156.96,156.87,22.31146808]
[1746715021993,20.8,156.96,156.87,22.31146808]
[1746715023000,27.17106398,156.96,156.87,15.93676292]
[1746715023301,20.8,156.96,156.87,15.93676292]
[1746715023992,20.8,156.96,156.89,26.0]
[1746715024602,6.36942675,157.0,156.89,26.0]
[1746715024802,37.50436435,157.0,156.89,26.0]
[1746715025103,6.37023824,156.98,156.9,32.37348629]
[1746715025401,6.51158832,157.0,156.9,32.37348629]
[1746715025700,22.3345,157.01,156.9,48.30720203]
[1746715025701,28.70363897,157.01,156.9,48.30720203]
[1746715025892,6.0136,157.04,156.93,26.0]
[1746715025893,12.38151517,157.04,156.93,26.0]
[1746715026385,1.6582,157.05,156.94,26.0]
[1746715026804,8.02573492,157.05,156.94,26.0]
[1746715027000,8.02573492,157.05,156.95,22.30009556]
[1746715027393,1.6582,157.05,156.95,22.30009556]
[1746715027894,8.02579391,157.05,156.95,22.30009556]
[1746715028094,8.02579391,157.05,156.95,6.37145587]
[1746715028502,0.14216157,157.04,156.95,6.37145587]
[1746715028684,0.14216157,157.02,156.91,6.3418]
[1746715028889,31.1349376,157.02,156.91,6.3418]
[1746715029095,6.36902108,157.01,156.94,26.0]
[1746715029298,6.36902108,157.01,156.94,32.37180619]
[1746715029480,37.50395868,157.01,156.94,32.37180619]
[1746715029810,6.36780438,157.04,156.92,6.37267397]
[1746715030108,6.36780438,157.04,156.95,26.0]
[1746715030404,37.50274198,157.04,156.95,26.0]
[1746715030606,31.1349376,157.03,156.95,26.0]
[1746715031087,0.14216157,157.03,156.95,26.0]
[1746715031290,53.42509171,157.02,156.91,6.3418]
[1746715031493,31.1349376,157.01,156.91,6.3418]
[1746715031699,31.1349376,157.0,156.91,32.3418]
[1746715031889,31.27709917,156.99,156.91,6.37295162]
[1746715032091,31.1349376,156.98,156.91,6.37295162]
[1746715032293,0.14216157,156.99,156.92,26.0]
[1746715033009,31.27709917,156.99,156.88,6.37429882]
[1746715033196,6.37064407,156.97,156.88,6.37429882]
[1746715033697,6.37064407,156.97,156.86,22.71794065]
[1746715033698,31.1349376,156.95,156.86,6.37505582]
[1746715033897,31.1349376,156.95,156.86,32.37505582]
[1746715034410,31.1349376,156.95,156.86,6.37505582]
[1746715034613,37.50639347,156.95,156.86,26.0]
[1746715034811,37.50639347,156.95,156.87,26.0]
[1746715035207,31.1349376,156.92,156.84,6.3759245]
[1746715035408,31.1349376,156.89,156.81,6.37714431]
[1746715035603,31.1349376,156.89,156.8,15.94297481]
[1746715035604,31.1349376,156.86,156.75,6.7810034]
[1746715035906,31.1349376,156.83,156.74,15.94932514]
[1746715036111,31.1349376,156.82,156.75,26.0]
[1746715036289,31.1349376,156.82,156.72,6.38080653]
[1746715036686,31.1349376,156.82,156.74,26.0]
[1746715036687,37.51198108,156.82,156.74,26.0]
[1746715037692,53.80761235,156.82,156.75,6.37958532]
[1746715037888,0.14216157,156.85,156.75,6.37958532]
[1746715038095,6.51775819,156.85,156.75,6.37958532]
[1746715038294,47.43056887,156.84,156.75,6.37958532]
[1746715038501,47.57273044,156.85,156.75,22.32854863]
[1746715038702,47.57273044,156.85,156.78,26.0]
[1746715038922,47.43056887,156.84,156.78,26.0]
[1746715039220,47.57273044,156.85,156.78,26.0]
[1746715039624,53.94832324,156.85,156.79,6.37795777]
[1746715039921,47.43056887,156.84,156.79,6.37795777]
[1746715040090,47.43056887,156.82,156.76,6.37917836]
[1746715040512,6.51775437,156.85,156.69,15.95443036]
[1746715040513,47.57273044,156.79,156.69,15.95443036]
[1746715040737,47.43056887,156.78,156.69,15.95443036]
[1746715041018,47.43056887,156.78,156.69,41.95443036]
[1746715041220,47.43056887,156.77,156.7,6.38162093]
[1746715041517,47.57273044,156.78,156.7,6.38162093]
[1746715041715,6.37838794,156.78,156.69,32.3820282]
[1746715042020,0.14216157,156.79,156.69,32.3820282]
[1746715042214,26.4487,156.8,156.72,26.0]
[1746715042416,47.43056887,156.77,156.69,48.33709872]
[1746715043101,0.14216157,156.79,156.69,48.33709872]
[1746715043292,47.43056887,156.76,156.69,48.33709872]
[1746715043491,6.37836458,156.78,156.69,48.33709872]
[1746715043699,47.43056887,156.76,156.69,48.33709872]
[1746715043995,47.43056887,156.76,156.69,6.3820282]
[1746715044192,47.43056887,156.75,156.69,6.3820282]
[1746715044520,47.43056887,156.74,156.69,6.3820282]
[1746715044731,47.43056887,156.73,156.66,42.09981133]
[1746715044897,47.43056887,156.73,156.67,6.38284291]
[1746715045224,0.14216157,156.73,156.67,6.38284291]
[1746715045394,20.08,156.74,156.67,6.38284291]
[1746715045595,47.43056887,156.73,156.67,6.38284291]
[1746715046001,6.38047298,156.73,156.66,6.52552305]
[1746715046206,47.43056887,156.73,156.66,6.52552305]
[1746715046424,20.08,156.74,156.66,6.52552305]
[1746715046609,20.08,156.74,156.66,22.48364892]
[1746715046814,20.08,156.74,156.69,26.0]
[1746715047514,20.08,156.79,156.69,26.0]
[1746715047721,20.08,156.79,156.7,22.33567325]
[1746715048227,20.08,156.79,156.73,26.0]
[1746715049223,26.6774,156.84,156.73,26.0]
[1746715049713,33.05337841,156.84,156.74,22.3299732]
[1746715050049,26.6774,156.84,156.74,22.3299732]
[1746715050616,20.08,156.84,156.77,26.0]
[1746715051134,47.43056887,156.83,156.74,22.3299732]
[1746715051325,26.45593871,156.84,156.74,32.37999234]
[1746715051326,47.43056887,156.81,156.74,32.37999234]
[1746715051529,0.14216157,156.82,156.74,32.37999234]
[1746715051725,6.37755102,156.8,156.68,22.33852437]
[1746715051926,6.37755102,156.8,156.71,26.0]
[1746715052241,6.37755102,156.8,156.68,22.33852437]
[1746715052408,6.51924014,156.82,156.68,54.25070205]
[1746715052612,53.94980901,156.82,156.71,26.0]
[1746715053028,0.14216157,156.8,156.71,26.0]
[1746715053327,47.43056887,156.8,156.71,26.0]
[1746715053523,6.37707857,156.82,156.71,26.0]
[1746715053729,6.37707857,156.82,156.72,22.33282286]
[1746715054508,6.37643122,156.83,156.72,22.33282286]
[1746715055055,20.08,156.84,156.75,26.0]
[1746715055209,26.45603387,156.84,156.75,26.0]
[1746715055526,73.88660274,156.84,156.75,26.0]
[1746715055701,6.51857423,156.83,156.76,6.37917836]
[1746715056109,20.08,156.84,156.76,22.32712426]
[1746715056822,20.08,156.84,156.79,26.0]
[1746715057012,32.80114004,156.89,156.79,26.0]
[1746715057215,26.4269,156.89,156.79,26.0]
[1746715057532,20.08,156.89,156.8,26.0]
[1746715057866,20.08,156.89,156.81,6.37714431]
[1746715058228,26.45393621,156.89,156.81,6.37714431]
[1746715059446,20.08,156.89,156.81,22.32000509]
[1746715059637,26.45390618,156.89,156.81,22.32000509]
[1746715059822,20.08,156.89,156.81,22.32000509]
[1746715060225,1.5584,156.91,156.84,26.0]
[1746715060528,7.93161501,156.91,156.84,26.0]
[1746715061338,7.93161501,156.91,156.81,22.32000509]
[1746715061339,55.36218388,156.91,156.81,6.37714431]
[1746715061545,0.14216157,156.89,156.81,26.0]
[1746715061735,0.14216157,156.87,156.78,6.37836458]
[1746715062050,0.14216157,156.86,156.78,6.37836458]
[1746715062222,47.43056887,156.87,156.78,32.37836458]
[1746715062423,0.14216157,156.86,156.78,6.37836458]
[1746715062733,47.43056887,156.85,156.75,6.37958532]
[1746715062933,47.43056887,156.85,156.75,32.37958532]
[1746715063135,47.43056887,156.85,156.75,6.37958532]
[1746715063326,47.57273044,156.84,156.76,26.0]
[1746715063528,6.37601675,156.84,156.76,32.37902189]
[1746715063950,6.37564091,156.85,156.76,32.37902189]
[1746715064124,53.80620978,156.85,156.76,32.37902189]
[1746715064720,47.57273044,156.86,156.76,48.32696779]
[1746715064920,0.14216157,156.86,156.76,48.32696779]
[1746715065243,53.94788799,156.86,156.76,48.32696779]
[1746715065441,0.14216157,156.86,156.76,48.32696779]
[1746715065749,20.08,156.88,156.76,48.32696779]
[1746715066542,1.5584,156.91,156.8,26.0]
[1746715067544,6.6179,156.93,156.84,26.0]
[1746715068428,54.04846887,156.93,156.84,26.0]
[1746715068629,6.6179,156.93,156.84,26.0]
[1746715068834,12.99032397,156.93,156.84,26.0]
[1746715069023,6.6179,156.93,156.84,26.0]
[1746715069551,60.42076688,156.93,156.85,6.37551801]
[1746715070735,12.99019801,156.93,156.85,6.37551801]
[1746715072727,60.42076688,156.93,156.85,6.37551801]
[1746715073027,12.99019801,156.93,156.85,6.37551801]
[1746715073425,6.6179,156.93,156.85,22.31431303]
[1746715073936,12.99024375,156.93,156.85,22.31431303]
[1746715074249,60.42081262,156.93,156.85,6.37551801]
[1746715075861,12.99024375,156.93,156.85,6.37551801]
[1746715076235,12.99024375,156.93,156.85,22.31431303]
[1746715076443,6.6179,156.93,156.85,22.31431303]
[1746715076854,66.99056887,156.94,156.85,22.31431303]
[1746715076855,19.56,156.94,156.85,22.31431303]
[1746715077058,19.56,156.94,156.88,26.0]
[1746715077357,25.9318668,156.94,156.85,105.11431303]
[1746715077658,25.9318668,156.94,156.86,26.0]
[1746715078436,25.9318668,156.94,156.87,6.37470516]
[1746715079352,19.56,156.94,156.87,22.31146808]
[1746715079552,19.56,156.94,156.82,6.37673766]
[1746715079553,47.43056887,156.93,156.82,6.37673766]
[1746715079760,31.22793212,156.93,156.85,26.0]
[1746715080092,31.22793212,156.93,156.82,89.17673766]
[1746715080233,25.93198542,156.94,156.85,26.0]
[1746715080429,19.56,156.94,156.86,6.37511156]
[1746715080663,19.56,156.94,156.86,22.31289047]
[1746715080848,57.15979447,156.94,156.86,6.37511156]
[1746715081158,31.22793212,156.93,156.86,6.37511156]
[1746715081361,31.22793212,156.92,156.86,6.37511156]
[1746715081741,31.22793212,156.92,156.84,6.3759245]
[1746715081937,31.22793212,156.9,156.81,6.37714431]
[1746715082348,31.22793212,156.89,156.81,32.37714431]
[1746715082531,31.22793212,156.89,156.76,31.8958918]
[1746715082532,31.22793212,156.86,156.78,6.37836458]
[1746715082737,31.22793212,156.85,156.78,6.37836458]
[1746715082932,136.6,156.87,156.78,6.37836458]
[1746715082933,0.14216157,156.86,156.78,6.37836458]
[1746715083146,31.22793212,156.85,156.78,6.37836458]
[1746715083459,31.22793212,156.84,156.73,1.5789]
[1746715083649,31.22793212,156.84,156.73,6.38039941]
[1746715083838,31.22793212,156.84,156.74,26.0]
[1746715084538,136.74216157,156.85,156.75,6.37958532]
[1746715084539,37.60426317,156.83,156.75,6.37958532]
[1746715084741,136.74216157,156.85,156.76,26.0]
[1746715084742,136.6,156.85,156.76,26.0]
[1746715084965,142.97555743,156.85,156.76,26.0]
[1746715085265,174.20348955,156.85,156.76,26.0]
[1746715085469,31.37009369,156.84,156.76,26.0]
[1746715085664,31.37009369,156.84,156.75,6.37958532]
[1746715085964,47.56305688,156.84,156.75,6.37958532]
[1746715086161,47.42089531,156.83,156.75,6.37958532]
[1746715086565,142.97553881,156.85,156.74,22.32976885]
[1746715086740,136.6,156.85,156.74,22.32976885]
[1746715086940,136.6,156.85,156.77,26.0]
[1746715087364,21.1797,156.88,156.77,26.0]
[1746715087587,21.1797,156.88,156.78,26.0]
[1746715088065,19.56,156.88,156.78,26.0]
[1746715088271,73.35526858,156.88,156.78,26.0]
[1746715088568,25.93437327,156.88,156.79,6.37795777]
[1746715088743,19.56,156.88,156.79,6.37795777]
[1746715088937,25.93434609,156.88,156.79,22.32285221]
[1746715089160,73.3552414,156.88,156.79,6.37795777]
[1746715089750,47.42089531,156.87,156.79,6.37795777]
[1746715090145,73.3552414,156.88,156.79,6.37795777]
[1746715090565,6.37511156,156.86,156.79,6.37795777]
[1746715090865,6.3748525,156.87,156.79,6.37795777]
[1746715091447,53.79574781,156.87,156.79,6.37795777]
[1746715091848,53.79574781,156.87,156.78,26.0]
[1746715091849,0.14216157,156.86,156.78,26.0]
[1746715092049,0.14216157,156.86,156.77,32.3784178]
[1746715092248,47.56305688,156.86,156.77,32.3784178]
[1746715092663,156.16,156.88,156.77,32.3784178]
[1746715092866,0.14216157,156.87,156.77,32.3784178]
[1746715093050,47.56305688,156.87,156.77,32.3784178]
[1746715093379,47.42089531,156.85,156.77,32.3784178]
[1746715093877,47.42089531,156.85,156.77,6.3784178]
[1746715094245,47.42089531,156.85,156.75,26.0]
[1746715094462,6.37470516,156.87,156.76,6.37917836]
[1746715094665,156.16,156.88,156.79,26.0]
[1746715095975,162.53438663,156.88,156.79,26.0]
[1746715096361,162.53438663,156.88,156.8,6.37755102]
[1746715096560,156.16,156.88,156.8,6.37755102]
[1746715096873,162.5343589,156.88,156.8,6.37755102]
[1746715097277,209.95525421,156.88,156.8,6.37755102]
[1746715097571,47.42089531,156.86,156.79,32.37784976]
[1746715097973,47.42089531,156.86,156.79,6.37784976]
[1746715098358,162.67652047,156.88,156.78,22.32427604]
[1746715098359,47.56305688,156.87,156.78,22.32427604]
[1746715098563,53.93781147,156.87,156.78,22.32427604]
[1746715099275,156.16,156.88,156.78,22.32427604]
[1746715099580,19.56,156.88,156.81,26.0]
[1746715099769,138.1799,156.92,156.81,32.4814]
[1746715100078,144.55270874,156.92,156.81,32.4814]
[1746715100483,47.56305688,156.91,156.82,22.31858181]
[1746715100676,47.42089531,156.9,156.82,22.31858181]
[1746715100877,0.14216157,156.91,156.82,22.31858181]
[1746715101185,7.95270874,156.92,156.82,22.31858181]
[1746715101368,1.5799,156.92,156.85,26.0]
[1746715102355,1.5799,156.92,156.86,6.37511156]
[1746715102555,7.95264886,156.92,156.86,6.37511156]
[1746715103158,1.5799,156.92,156.86,6.37511156]
[1746715103567,1.5799,156.92,156.86,22.31289047]
[1746715104365,47.42089531,156.91,156.81,82.8]
[1746715104575,47.42089531,156.87,156.78,22.32427604]
[1746715104759,47.42089531,156.87,156.78,48.32427604]
[1746715104959,142.97348629,156.9,156.78,48.32427604]
[1746715105262,190.3943816,156.9,156.78,48.32427604]
[1746715105465,142.97348629,156.9,156.78,48.32427604]
[1746715105763,190.3943816,156.9,156.78,22.32427604]
[1746715105963,53.7948516,156.89,156.8,26.0]
[1746715106370,47.56305688,156.88,156.8,26.0]
[1746715106685,47.42089531,156.87,156.8,26.0]
[1746715106977,6.37395629,156.89,156.8,26.0]
[1746715106978,47.42089531,156.89,156.8,26.0]
[1746715107175,47.42089531,156.9,156.8,26.0]
[1746715107368,7.95270961,156.92,156.81,26.0]
[1746715107562,55.37360492,156.92,156.81,26.0]
[1746715107759,47.42089531,156.91,156.81,26.0]
[1746715107962,47.42089531,156.89,156.81,26.0]
[1746715108255,47.42089531,156.89,156.78,105.12427604]
[1746715108256,47.42089531,156.88,156.78,22.32416924]
[1746715108462,6.37423048,156.89,156.78,22.32416924]
[1746715108463,136.6,156.89,156.78,22.32416924]
[1746715108679,136.6,156.89,156.8,26.0]
[1746715108883,142.97401023,156.89,156.8,26.0]
[1746715109083,190.39490554,156.89,156.8,26.0]
[1746715109576,142.97401023,156.89,156.8,26.0]
[1746715109754,190.39490554,156.89,156.8,26.0]
[1746715112183,6.3759245,156.84,156.76,32.37917836]
[1746715114278,31.4023471,156.83,156.74,6.37999234]
[1746715114594,31.26018553,156.82,156.75,26.0]
[1746715114889,31.4023471,156.83,156.74,6.37999234]
[1746715115089,31.4023471,156.83,156.75,26.0]
[1746715115284,6.37673766,156.82,156.75,32.37933944]
[1746715115490,6.37673766,156.82,156.75,6.37933944]
[1746715115687,1.6417,156.84,156.76,26.0]
[1746715115688,8.0177928,156.84,156.76,26.0]
[1746715116186,31.4023471,156.83,156.76,26.0]
[1746715117182,31.26018553,156.82,156.76,26.0]
[1746715117382,6.37755102,156.8,156.74,6.37985484]
[1746715117692,37.63773655,156.8,156.74,6.37985484]
[1746715117994,37.63773655,156.8,156.71,6.3812137]
[1746715117995,31.4023471,156.79,156.71,6.3812137]
[1746715118180,31.4023471,156.79,156.72,26.0]
[1746715118788,31.4023471,156.79,156.71,6.3812137]
[1746715119085,6.37836458,156.78,156.73,26.0]
[1746715119597,6.37836458,156.78,156.71,26.0]
[1746715119797,6.37836458,156.78,156.7,6.38162093]
[1746715119981,0.14216157,156.79,156.7,22.33567325]
[1746715119982,6.52029135,156.79,156.7,22.33567325]
[1746715120373,37.63787359,156.8,156.71,26.0]
[1746715120579,6.37768806,156.8,156.71,26.0]
[1746715121095,37.63787359,156.8,156.71,26.0]
[1746715121497,31.4023471,156.79,156.71,26.0]
[1746715121884,6.37836458,156.78,156.72,6.38080653]
[1746715122480,6.52022174,156.79,156.72,6.38080653]
[1746715123716,25.91930662,156.81,156.72,22.33282286]
[1746715123878,19.4,156.81,156.75,26.0]
[1746715125209,25.77729372,156.81,156.75,26.0]
[1746715125703,57.03747925,156.81,156.75,32.3795376]
[1746715125879,25.77729372,156.81,156.75,32.3795376]
[1746715126292,19.4,156.81,156.75,32.3795376]
[1746715127592,25.77719448,156.81,156.75,32.3795376]
[1746715127793,19.4,156.81,156.75,32.3795376]
[1746715128306,25.77718541,156.81,156.75,32.3795376]
[1746715129000,31.26018553,156.79,156.73,6.38039941]
[1746715129206,31.26018553,156.79,156.7,15.95401833]
[1746715129207,31.26018553,156.77,156.71,6.3812137]
[1746715129393,31.26018553,156.77,156.72,26.0]
[1746715129586,31.26018553,156.77,156.68,15.95509897]
[1746715129795,31.26018553,156.77,156.71,26.0]
[1746715130312,6.37917836,156.76,156.71,26.0]
[1746715130705,6.37880247,156.77,156.71,32.38116356]
[1746715130885,6.37880247,156.77,156.71,6.38116356]
[1746715131080,37.638988,156.77,156.71,32.38116356]
[1746715131596,37.638988,156.77,156.7,6.38146473]
[1746715132628,0.14216157,156.77,156.7,6.38146473]
[1746715132901,31.4023471,156.77,156.7,6.38146473]
[1746715133595,7.6487,156.76,156.7,6.38146473]
[1746715133796,38.90888553,156.76,156.7,6.38146473]
[1746715133990,1.6349,156.76,156.7,6.38146473]
[1746715134312,6.37836458,156.78,156.7,6.38146473]
[1746715134313,31.26018553,156.78,156.7,22.33551705]
[1746715134498,31.26018553,156.78,156.7,6.38146473]
[1746715134702,6.37877144,156.77,156.69,6.3820282]
[1746715135301,37.63895697,156.77,156.69,6.3820282]
[1746715136295,31.26018553,156.76,156.69,6.3820282]
[1746715136606,6.37877144,156.77,156.71,32.38103361]
[1746715137213,6.52063377,156.78,156.71,32.38103361]
[1746715137390,37.7808193,156.78,156.71,32.38103361]
[1746715137904,6.52063377,156.78,156.67,6.38284291]
[1746715138109,6.52063377,156.78,156.7,26.0]
[1746715138294,37.7808193,156.78,156.7,26.0]
[1746715138901,37.7808193,156.78,156.71,6.3812137]
[1746715139192,6.52063377,156.78,156.71,6.3812137]
[1746715139400,37.7808193,156.78,156.71,6.3812137]
[1746715139798,37.7808193,156.78,156.71,32.3812137]
[1746715140002,6.3784722,156.78,156.71,32.3812137]
[1746715141312,37.63865773,156.78,156.71,32.3812137]
[1746715141817,37.63865773,156.78,156.71,26.0]
[1746715142124,6.3784722,156.78,156.71,26.0]
[1746715142992,6.3784722,156.78,156.72,6.38080653]
[1746715143418,142.97811107,156.79,156.72,6.38080653]
[1746715143725,31.26018553,156.76,156.7,26.0]
[1746715144517,31.26018553,156.75,156.68,6.38243553]
[1746715145016,6.3798007,156.75,156.68,6.38243553]
[1746715145196,37.63998623,156.75,156.68,6.38243553]
[1746715146719,6.3798007,156.75,156.68,6.38243553]
[1746715147116,37.63998623,156.75,156.68,6.38243553]
[1746715147489,6.3798007,156.75,156.68,6.38243553]
[1746715148216,56.74169065,156.76,156.68,6.38243553]
[1746715148417,25.33934355,156.76,156.68,22.33852437]
[1746715149815,56.59952908,156.76,156.68,22.33852437]
[1746715150394,25.33934355,156.76,156.71,32.38116089]
[1746715150693,25.33934355,156.76,156.71,26.0]
[1746715150889,25.33934355,156.76,156.69,6.3820282]
[1746715151117,25.33934355,156.76,156.69,32.3820282]
[1746715153014,56.59952908,156.76,156.69,32.3820282]
[1746715153516,31.26018553,156.74,156.66,0.1423706]
[1746715153716,0.14216157,156.75,156.68,26.0]
[1746715153917,18.96,156.76,156.68,26.0]
[1746715154419,25.33923848,156.76,156.68,26.0]
[1746715154593,25.33923848,156.76,156.69,6.3820282]
[1746715154795,18.96,156.76,156.69,6.3820282]
[1746715155013,25.3392264,156.76,156.69,6.3820282]
[1746715155413,56.59941193,156.76,156.69,6.3820282]
[1746715156305,25.3392264,156.76,156.69,6.3820282]
[1746715156511,56.59941193,156.76,156.69,6.3820282]
[1746715156709,18.96,156.76,156.69,22.33709872]
[1746715157014,18.96,156.76,156.72,26.0]
[1746715157190,14.31253716,156.8,156.69,22.33709872]
[1746715157390,1.5765,156.8,156.73,26.0]
[1746715157690,155.52,156.81,156.73,26.0]
[1746715158416,161.89716078,156.81,156.73,26.0]
[1746715158599,155.52,156.81,156.73,26.0]
[1746715158801,155.52,156.81,156.74,6.37999234]
[1746715159319,161.89716085,156.81,156.74,6.37999234]
[1746715160409,155.52,156.81,156.74,22.3299732]
[1746715160608,1.5554,156.84,156.77,26.0]
[1746715160808,1.5554,156.84,156.78,6.37836458]
[1746715161016,32.81558553,156.84,156.78,6.37836458]
[1746715161201,39.1915407,156.84,156.78,6.37836458]
[1746715161602,1.5554,156.84,156.78,6.37836458]
[1746715161800,7.93133048,156.84,156.78,6.37836458]
[1746715162008,39.19151601,156.84,156.78,6.37836458]
[1746715162208,7.93133048,156.84,156.78,6.37836458]
[1746715162410,39.19151601,156.84,156.78,6.37836458]
[1746715162599,31.26018553,156.83,156.78,6.37836458]
[1746715163110,31.26018553,156.83,156.76,6.37917836]
[1746715163317,31.26018553,156.8,156.75,32.37942674]
[1746715163518,31.26018553,156.8,156.71,6.7810034]
[1746715163721,31.26018553,156.78,156.72,6.38080653]
[1746715164222,31.26018553,156.78,156.71,26.0]
[1746715164223,31.26018553,156.76,156.71,6.3810707]
[1746715164414,31.26018553,156.75,156.68,6.38243553]
[1746715164727,1.51,156.76,156.69,26.0]
[1746715164931,31.26018553,156.75,156.69,26.0]
[1746715165230,31.26018553,156.75,156.7,32.38162093]
[1746715165831,31.26018553,156.74,156.69,6.38188262]
[1746715166209,31.26018553,156.75,156.69,6.38188262]
[1746715167130,31.26018553,156.75,156.68,6.38243553]
[1746715168133,37.63987434,156.75,156.68,6.38243553]
[1746715168620,31.26018553,156.74,156.68,6.38243553]
[1746715169137,37.64039593,156.74,156.68,6.38243553]
[1746715169634,31.26018553,156.73,156.67,32.38269241]
[1746715170628,6.52259542,156.73,156.67,32.38269241]
[1746715170832,37.78278095,156.73,156.67,6.38269241]
[1746715171129,25.30006653,156.74,156.67,6.38269241]
[1746715171314,18.92,156.74,156.67,6.38269241]
[1746715171519,18.92,156.74,156.67,32.38269241]
[1746715171834,18.92,156.74,156.67,48.3397997]
[1746715173134,50.18018553,156.74,156.67,48.3397997]
[1746715173722,56.5601914,156.74,156.67,48.3397997]
[1746715174038,50.18018553,156.74,156.67,48.3397997]
[1746715174736,56.56021798,156.74,156.67,6.38269241]
[1746715174940,18.92,156.74,156.67,48.3397997]
[1746715175230,56.56021003,156.74,156.67,22.3397997]
[1746715175439,18.92,156.74,156.67,48.3397997]
[1746715175940,56.56029419,156.74,156.67,48.3397997]
[1746715176112,56.56029419,156.74,156.67,6.38269241]
[1746715176113,31.4023471,156.73,156.67,6.38269241]
[1746715176742,37.78291233,156.73,156.67,6.38269241]
[1746715177116,56.56033746,156.74,156.67,6.38269241]
[1746715177831,18.92,156.74,156.67,6.38269241]
[1746715178025,18.92,156.74,156.67,32.38269241]
[1746715178233,18.92,156.74,156.67,48.3397997]
[1746715178738,136.6,156.75,156.67,48.3397997]
[1746715179634,174.23982926,156.75,156.67,48.3397997]
[1746715180024,31.4023471,156.74,156.67,32.38269241]
[1746715180449,0.14216157,156.74,156.67,32.38269241]
[1746715180836,136.6,156.75,156.67,48.3397997]
[1746715183240,136.6,156.75,156.67,32.38269241]